bitfinex/quotes_SOLUSD_20241007
["timestamp","ask_amount","ask_price","bid_price","bid_amount"]
[1728295370554,16.2474,147.23,147.2,6.7934]
[1728295370739,16.2474,147.23,147.2,8.15195679]
[1728295371052,16.2474,147.23,147.2,6.7934]
[1728295371455,16.2474,147.23,147.2,8.15195882]
[1728295371654,16.2474,147.23,147.21,6.7929]
[1728295372543,6.7908,147.26,147.22,6.7925]
[1728295372850,16.2514,147.27,147.23,18.33821335]
[1728295373026,1.69765474,147.26,147.23,23.7718]
[1728295373223,23.0417,147.27,147.23,25.13001156]
[1728295374644,1.6977928,147.26,147.23,23.7718]
[1728295374850,24.7394936,147.27,147.23,23.7718]
[1728295375951,23.0417,147.27,147.23,23.7718]
[1728295376563,8.48859249,147.26,147.23,16.9798]
[1728295379462,17.9492955,147.27,147.23,16.9798]
[1728295379656,17.9492955,147.27,147.24,6.7915]
[1728295380042,24.7394955,147.27,147.23,23.7717]
[1728295381361,17.9492955,147.27,147.23,23.7717]
[1728295381566,16.2514,147.27,147.24,8.1494452]
[1728295382062,23.0416,147.27,147.23,16.9798]
[1728295382261,8.48852417,147.26,147.23,16.9798]
[1728295382561,8.48852417,147.26,147.22,6.7925]
[1728295385460,16.2514,147.27,147.23,1.35831729]
[1728295385667,16.2514,147.27,147.24,6.7911]
[1728295385834,23.0416,147.27,147.23,6.7919]
[1728295386038,8.48842103,147.26,147.22,23.7734]
[1728295386455,16.2514,147.27,147.23,1.60928573]
[1728295386762,16.2514,147.27,147.25,6.7909]
[1728295387069,24.73962042,147.27,147.23,6.792]
[1728295388142,16.2514,147.27,147.24,6.7912]
[1728295388339,16.2514,147.27,147.24,1.3582689]
[1728295388665,16.2514,147.27,147.25,6.7907]
[1728295389443,8.48723612,147.29,147.25,6.7907]
[1728295389662,6.7894,147.29,147.25,6.7907]
[1728295391262,1.69758583,147.28,147.24,0.25098]
[1728295391565,6.7898,147.28,147.24,7.04238]
[1728295392744,6.7898,147.28,147.24,8.40046709]
[1728295393041,6.7898,147.28,147.24,7.04238]
[1728295393964,6.7898,147.28,147.25,1.35808652]
[1728295394139,6.7898,147.28,147.24,7.04238]
[1728295396284,6.7908,147.26,147.23,16.9798]
[1728295396454,8.48820579,147.27,147.23,23.7718]
[1728295396652,6.7906,147.27,147.23,23.7718]
[1728295399365,1.69779436,147.26,147.23,23.7718]
[1728295399575,6.7902,147.27,147.23,23.7715]
[1728295401258,6.7902,147.27,147.24,1.35819262]
[1728295401575,1.69787766,147.29,147.25,1.35814295]
[1728295401868,1.69787766,147.29,147.26,6.7906]
[1728295402044,8.48717766,147.29,147.25,25.12654295]
[1728295402244,6.7893,147.29,147.25,25.12654295]
[1728295402546,6.7893,147.29,147.25,23.7684]
[1728295402961,8.48644756,147.3,147.26,8.14863596]
[1728295403578,8.48644756,147.3,147.26,8.14856832]
[1728295404272,16.1243,147.31,147.28,6.7897]
[1728295404569,11.70301693,147.38,147.3,17.39111796]
[1728295404783,1.69715487,147.38,147.33,6.7871]
[1728295405072,6.7857,147.37,147.33,8.14439746]
[1728295405245,1.69661931,147.36,147.32,6.7878]
[1728295405581,1.69661931,147.36,147.31,23.7588]
[1728295406372,1.69681568,147.38,147.31,23.7588]
[1728295406565,6.7862,147.36,147.31,23.7588]
[1728295406864,1.69681568,147.38,147.33,0.25098]
[1728295407067,1.69681568,147.38,147.31,16.9705]
[1728295407249,6.786,147.37,147.32,6.7879]
[1728295407449,1.69670933,147.36,147.32,6.7879]
[1728295407650,1.69670933,147.36,147.32,8.14526642]
[1728295407954,1.69670933,147.36,147.32,6.7879]
[1728295408363,6.7862,147.36,147.32,6.7879]
[1728295408566,6.7862,147.36,147.32,8.14527951]
[1728295409075,6.7862,147.36,147.32,6.7879]
[1728295409272,6.7862,147.36,147.32,8.14526976]
[1728295410153,6.7857,147.37,147.32,8.14526976]
[1728295410474,15.2661,147.39,147.36,6.786]
[1728295410652,1.69670475,147.4,147.36,6.786]
[1728295410845,1.69670475,147.4,147.36,8.14302217]
[1728295411053,1.69624113,147.41,147.37,6.7855]
[1728295411254,8.47945008,147.42,147.38,8.14202006]
[1728295411976,1.69615008,147.42,147.38,8.14202006]
[1728295412183,23.55570665,147.43,147.38,8.14202006]
[1728295412484,6.7824,147.44,147.4,6.7842]
[1728295412670,6.7828,147.43,147.39,18.31819304]
[1728295412871,1.6959913,147.45,147.39,16.9614]
[1728295413068,6.7833,147.42,147.38,6.91049]
[1728295413768,6.783,147.43,147.39,1.35678966]
[1728295414357,6.783,147.43,147.39,1.3567834]
[1728295414676,6.7825,147.44,147.39,8.1412834]
[1728295414880,6.7825,147.44,147.4,6.7842]
[1728295415683,6.7825,147.44,147.41,1.3566197]
[1728295415856,8.47771048,147.45,147.41,8.1403197]
[1728295416061,23.55390015,147.46,147.42,6.7832]
[1728295416657,23.55390015,147.46,147.41,7.03458]
[1728295416856,23.55390015,147.46,147.41,8.3910801]
[1728295418485,6.782,147.45,147.41,7.03458]
[1728295419155,7.06254972,147.47,147.45,6.7819]
[1728295419471,8.47579841,147.49,147.45,6.7819]
[1728295419668,6.7802,147.49,147.45,6.7819]
[1728295420069,23.37339294,147.52,147.43,0.25098]
[1728295420070,1.69522994,147.48,147.43,0.25098]
[1728295420253,18.64377799,147.51,147.41,23.7427]
[1728295420459,6.7821,147.45,147.41,23.7427]
[1728295420984,6.7816,147.46,147.41,16.959]
[1728295421171,6.7816,147.46,147.42,6.7831]
[1728295421873,6.7816,147.46,147.41,23.7426]
[1728295422180,6.783,147.43,147.38,16.9623]
[1728295422389,6.783,147.43,147.38,23.7473]
[1728295422574,8.47921824,147.42,147.38,23.7473]
[1728295422761,1.69591824,147.42,147.38,16.9623]
[1728295422960,6.7838,147.41,147.35,16.966]
[1728295423185,6.7838,147.41,147.37,6.7855]
[1728295423382,6.7838,147.41,147.36,6.7859]
[1728295424464,6.7838,147.41,147.37,0.25098]
[1728295424661,1.69607865,147.4,147.36,0.12549]
[1728295424865,6.7847,147.39,147.35,23.7524]
[1728295425480,18.65371528,147.43,147.35,16.966]
[1728295425675,6.7852,147.38,147.35,16.966]
[1728295426391,6.7848,147.39,147.35,16.966]
[1728295426574,8.48062297,147.4,147.35,23.7525]
[1728295427765,6.7847,147.39,147.35,23.7525]
[1728295428866,8.48150911,147.38,147.35,16.966]
[1728295429077,6.7852,147.38,147.35,16.966]
[1728295429390,6.7848,147.39,147.35,18.32309457]
[1728295429574,6.7848,147.39,147.35,25.10949457]
[1728295430393,6.7848,147.39,147.35,23.7524]
[1728295430576,8.48158178,147.38,147.35,16.966]
[1728295430976,6.7852,147.38,147.35,16.966]
[1728295432493,6.7859,147.37,147.32,23.7567]
[1728295432697,1.69639714,147.4,147.33,0.25098]
[1728295432698,6.7861,147.36,147.33,0.25098]
[1728295432991,6.7861,147.36,147.32,23.7567]
[1728295433201,6.7857,147.37,147.32,23.7567]
[1728295433380,6.7857,147.37,147.33,6.7874]
[1728295433893,6.7853,147.38,147.34,8.14412031]
[1728295434296,8.48221584,147.37,147.33,6.7874]
[1728295434593,8.48268751,147.36,147.32,23.757]
[1728295435191,6.7861,147.36,147.32,23.757]
[1728295435376,6.7861,147.36,147.33,1.3573403]
[1728295435577,6.7861,147.36,147.32,23.757]
[1728295436778,6.7861,147.36,147.33,1.35734113]
[1728295438926,6.7861,147.36,147.32,23.757]
[1728295441231,6.7869,147.35,147.31,6.91379]
[1728295441432,6.787,147.34,147.31,0.12549]
[1728295441807,6.7867,147.35,147.31,6.91379]
[1728295442827,6.7867,147.35,147.31,8.27122985]
[1728295443031,6.7867,147.35,147.31,6.7883]
[1728295443413,6.787,147.34,147.3,7.03968]
[1728295444948,6.7875,147.33,147.3,0.25098]
[1728295445145,1.69684893,147.35,147.3,0.25098]
[1728295445325,8.48354893,147.35,147.31,6.7883]
[1728295445526,24.19676628,147.36,147.32,8.14509302]
[1728295445833,6.7859,147.37,147.33,6.7873]
[1728295448926,1.69658073,147.36,147.31,16.9705]
[1728295449247,1.69669792,147.38,147.32,0.25098]
[1728295449549,6.7866,147.35,147.31,23.7587]
[1728295450220,6.7866,147.35,147.32,1.35738317]
[1728295450440,6.7866,147.35,147.31,23.7587]
[1728295451652,6.7866,147.35,147.32,1.3574303]
[1728295451851,6.7862,147.36,147.32,8.1452303]
[1728295452154,8.48298479,147.36,147.32,8.1452303]
[1728295452959,6.7862,147.36,147.32,8.1452303]
[1728295454452,6.7862,147.36,147.32,6.7878]
[1728295454755,8.48338346,147.35,147.32,6.7878]
[1728295454947,6.7866,147.35,147.32,6.7878]
[1728295455142,6.7866,147.35,147.32,8.14522882]
[1728295455452,6.7862,147.36,147.32,7.03858]
[1728295455753,6.7857,147.37,147.33,8.14468806]
[1728295455936,6.7857,147.37,147.34,6.7869]
[1728295456156,6.7857,147.37,147.34,8.14415041]
[1728295456336,1.69661002,147.36,147.33,23.7558]
[1728295456537,1.69661002,147.36,147.33,16.9685]
[1728295456856,6.7861,147.36,147.33,16.9685]
[1728295457051,6.7861,147.36,147.33,23.7559]
[1728295457351,6.7857,147.37,147.33,23.7559]
[1728295457527,6.7857,147.37,147.34,1.35726298]
[1728295458125,8.48288033,147.36,147.33,16.9685]
[1728295458348,6.7863,147.36,147.33,18.32578907]
[1728295458556,6.7863,147.36,147.33,16.9685]
[1728295459060,6.7863,147.36,147.33,23.7559]
[1728295459244,6.7852,147.38,147.34,8.14428725]
[1728295460049,16.77561393,147.39,147.34,1.35728725]
[1728295460257,8.48046714,147.41,147.37,6.7855]
[1728295460553,6.7842,147.4,147.35,17.09159]
[1728295460755,6.7842,147.4,147.36,6.91149]
[1728295460959,6.7842,147.4,147.36,6.786]
[1728295461162,6.7842,147.4,147.36,8.14300376]
[1728295461555,6.7848,147.39,147.35,23.87789]
[1728295461763,6.7855,147.38,147.35,0.12549]
[1728295461935,1.69632713,147.41,147.33,0.12549]
[1728295462133,6.7856,147.37,147.33,30.814964]
[1728295462535,6.7856,147.37,147.34,6.7869]
[1728295462830,6.7856,147.37,147.33,6.7871]
[1728295463644,6.7852,147.38,147.34,8.14406155]
[1728295463845,6.7847,147.39,147.36,6.786]
[1728295464065,6.7847,147.39,147.36,8.14301984]
[1728295464953,6.7847,147.39,147.35,8.14344762]
[1728295465330,6.7847,147.39,147.35,6.7864]
[1728295465847,6.7852,147.38,147.34,23.7543]
[1728295467164,6.7852,147.38,147.35,1.35709346]
[1728295467341,6.7852,147.38,147.34,23.7543]
[1728295467859,6.7852,147.38,147.35,1.35708917]
[1728295468754,6.7852,147.38,147.35,8.14358917]
[1728295470181,6.7852,147.38,147.35,6.7865]
[1728295470676,6.7852,147.38,147.35,8.14358943]
[1728295471049,6.7852,147.38,147.34,23.7541]
[1728295474787,1.69641156,147.37,147.33,0.25098]
[1728295474999,6.7864,147.36,147.32,30.815664]
[1728295475295,6.7866,147.35,147.32,6.7878]
[1728295475481,6.7866,147.35,147.31,16.9701]
[1728295475482,6.7866,147.35,147.31,23.7583]
[1728295476310,6.7866,147.35,147.32,6.7879]
[1728295476595,6.7866,147.35,147.32,0.25098]
[1728295477703,6.787,147.34,147.3,6.7886]
[1728295478115,1.6966989,147.37,147.3,6.7886]
[1728295478116,6.7875,147.33,147.3,6.7886]
[1728295478275,6.7875,147.33,147.29,7.04008]
[1728295481300,6.7887,147.31,147.27,6.79]
[1728295481518,6.7889,147.3,147.26,6.7903]
[1728295481828,6.7885,147.31,147.27,8.14793513]
[1728295482114,6.7885,147.31,147.27,6.7901]
[1728295485703,8.48609973,147.3,147.27,6.7901]
[1728295485891,6.7888,147.3,147.27,6.7901]
[1728295486606,6.7888,147.3,147.26,7.04148]
[1728295487619,8.48669185,147.29,147.25,23.7681]
[1728295487927,6.7893,147.29,147.25,23.7681]
[1728295488691,6.7893,147.29,147.26,1.35796591]
[1728295488921,6.7893,147.29,147.25,23.7681]
[1728295489122,6.7897,147.28,147.25,16.9772]
[1728295489427,6.7905,147.27,147.24,6.7916]
[1728295490200,6.7905,147.27,147.23,8.15008864]
[1728295493727,6.7896,147.29,147.25,6.7907]
[1728295494225,1.6977358,147.3,147.26,8.14858581]
[1728295494421,22.6096,147.29,147.25,6.791]
[1728295494627,15.8199,147.29,147.26,6.7906]
[1728295494828,22.6092,147.29,147.26,6.7906]
[1728295495003,22.6092,147.29,147.24,41.006564]
[1728295495208,22.6092,147.29,147.25,6.7909]
[1728295496038,22.6092,147.29,147.25,8.14888315]
[1728295496329,22.6092,147.29,147.25,6.7909]
[1728295497123,22.6092,147.29,147.26,1.35798249]
[1728295498330,15.8199,147.29,147.26,1.35798249]
[1728295498519,15.8199,147.29,147.27,8.14800155]
[1728295498722,6.7885,147.31,147.27,8.14800155]
[1728295498909,22.8709,147.32,147.28,17.22528]
[1728295499432,16.0829,147.32,147.29,6.7892]
[1728295500014,16.0829,147.32,147.28,17.22528]
[1728295500209,22.8709,147.32,147.28,24.01488]
[1728295500404,6.7884,147.31,147.27,6.79]
[1728295500930,6.7884,147.31,147.28,1.35775867]
[1728295501533,22.8709,147.32,147.28,1.35775867]
[1728295501709,16.0829,147.32,147.29,6.7889]
[1728295502034,16.0829,147.32,147.3,6.7888]
[1728295502911,16.0829,147.32,147.29,18.33064864]
[1728295503112,22.8709,147.32,147.29,25.11974864]
[1728295503443,22.8709,147.32,147.29,23.7621]
[1728295503814,29.2849,147.35,147.31,23.7593]
[1728295504021,16.1758,147.35,147.32,8.14533194]
[1728295504432,16.1758,147.35,147.33,6.7873]
[1728295504616,6.7852,147.38,147.34,8.14417997]
[1728295505624,17.87223771,147.39,147.34,8.14417997]
[1728295505827,6.7851,147.38,147.34,6.7869]
[1728295506025,6.7851,147.38,147.33,17.09379]
[1728295506026,6.7859,147.37,147.33,23.88089]
[1728295506726,6.7859,147.37,147.34,1.35720645]
[1728295507034,8.48182308,147.38,147.34,1.35720645]
[1728295507240,6.7853,147.38,147.34,8.14390645]
[1728295507420,8.48171298,147.38,147.34,6.7867]
[1728295507609,6.7853,147.38,147.35,1.35713491]
[1728295507813,24.65701864,147.39,147.35,8.14353491]
[1728295508541,6.7852,147.38,147.34,6.7868]
[1728295510235,17.87221864,147.39,147.33,23.7556]
[1728295510543,6.7861,147.36,147.33,16.9683]
[1728295510745,1.69650998,147.38,147.33,16.9683]
[1728295510943,6.7857,147.37,147.34,1.35720412]
[1728295511544,6.7852,147.38,147.34,8.14400412]
[1728295512038,16.1758,147.39,147.36,6.7859]
[1728295513241,16.1758,147.39,147.35,24.00318]
[1728295513443,6.7843,147.4,147.36,6.7858]
[1728295513648,6.7843,147.4,147.37,1.35691158]
[1728295514720,6.7843,147.4,147.36,6.7858]
[1728295515139,6.7843,147.4,147.37,1.35692849]
[1728295515632,6.7843,147.4,147.36,6.7858]
[1728295515943,6.7843,147.4,147.37,1.35692991]
[1728295516142,6.7843,147.4,147.36,6.7858]
[1728295516516,6.7843,147.4,147.37,1.35692938]
[1728295517351,6.7843,147.4,147.36,6.7858]
[1728295518053,1.69616203,147.39,147.35,24.00318]
[1728295518243,1.69626819,147.42,147.35,24.00318]
[1728295518923,6.7848,147.39,147.35,24.00318]
[1728295519351,1.69627436,147.38,147.32,16.9691]
[1728295519526,6.7861,147.36,147.32,23.7567]
[1728295519853,6.7857,147.37,147.33,6.7871]
[1728295520149,6.7851,147.39,147.35,6.7864]
[1728295520539,1.69650693,147.4,147.35,6.7864]
[1728295520844,6.7852,147.38,147.35,6.7864]
[1728295521454,6.7852,147.38,147.34,17.09279]
[1728295521746,1.69650693,147.4,147.33,6.7873]
[1728295521946,6.7859,147.37,147.33,6.7873]
[1728295522449,6.7859,147.37,147.34,1.35714683]
[1728295522623,6.7859,147.37,147.34,8.14404683]
[1728295522824,1.69650693,147.4,147.34,8.14404683]
[1728295523049,6.7853,147.38,147.34,8.14404683]
[1728295524643,6.7853,147.38,147.34,6.7869]
[1728295524834,6.7853,147.38,147.34,8.1440477]
[1728295525349,6.7853,147.38,147.34,6.7869]
[1728295525735,6.7853,147.38,147.34,8.14404752]
[1728295527659,6.7853,147.38,147.34,6.7869]
[1728295530664,6.7864,147.36,147.32,6.7879]
[1728295532965,6.7865,147.35,147.32,6.7879]
[1728295533767,6.7862,147.36,147.32,6.7879]
[1728295533950,8.48286036,147.36,147.32,6.7879]
[1728295534154,6.7862,147.36,147.32,6.7879]
[1728295536352,6.7862,147.36,147.33,1.35732117]
[1728295537474,6.7862,147.36,147.32,6.7879]
[1728295537650,6.7862,147.36,147.32,8.14522454]
[1728295539567,6.7862,147.36,147.32,6.7879]
[1728295539745,1.69665974,147.37,147.31,0.25098]
[1728295540070,6.7869,147.35,147.31,7.03908]
[1728295540256,1.69675918,147.36,147.31,7.03908]
[1728295540455,6.787,147.34,147.31,0.25098]
[1728295540660,6.787,147.34,147.3,23.7597]
[1728295540964,6.7875,147.33,147.3,23.7597]
[1728295542267,1.69675918,147.36,147.3,23.7597]
[1728295542444,6.7872,147.34,147.3,23.7597]
[1728295553800,6.7872,147.34,147.31,1.35748277]
[1728295555087,1.69675918,147.36,147.31,1.35748277]
[1728295555264,1.69666996,147.35,147.3,16.9711]
[1728295555469,6.7868,147.35,147.31,7.03928]
[1728295556569,8.48384596,147.34,147.31,6.7883]
[1728295556889,6.7871,147.34,147.31,6.7883]
[1728295557393,1.69685368,147.33,147.29,6.7889]
[1728295557605,1.69698442,147.36,147.29,6.7889]
[1728295557898,6.7876,147.33,147.29,6.7889]
[1728295560495,6.7876,147.33,147.29,23.7621]
[1728295561900,6.7884,147.31,147.28,7.04048]
[1728295562067,6.7884,147.31,147.28,6.91499]
[1728295562273,6.7884,147.31,147.27,6.7901]
[1728295563187,6.7881,147.32,147.28,6.7896]
[1728295564381,1.69718116,147.31,147.26,34.8152]
[1728295564696,6.7894,147.29,147.26,16.9758]
[1728295565708,6.7905,147.27,147.23,23.7715]
[1728295566803,15.5877,147.28,147.2,16.9828]
[1728295567103,6.792,147.24,147.2,16.9828]
[1728295567802,8.49024864,147.23,147.2,16.9828]
[1728295567977,6.7922,147.23,147.2,16.9828]
[1728295568377,6.7926,147.22,147.18,13.4245]
[1728295569017,6.7926,147.22,147.18,6.7943]
[1728295569315,36.9759,147.27,147.19,1.35856836]
[1728295569502,36.9759,147.27,147.19,18.34306836]
[1728295569812,6.7912,147.25,147.21,6.7929]
[1728295570026,6.7906,147.27,147.22,8.15076502]
[1728295570310,6.7908,147.26,147.22,6.7924]
[1728295570514,1.69797342,147.25,147.22,6.7924]
[1728295570712,1.69797342,147.25,147.21,16.982]
[1728295570894,1.69797342,147.25,147.21,23.7748]
[1728295572017,6.7913,147.25,147.21,23.7748]
[1728295573214,1.69797585,147.24,147.21,16.982]
[1728295573422,1.69812236,147.27,147.19,0.25098]
[1728295574297,6.7921,147.23,147.19,7.04458]
[1728295574493,6.7917,147.24,147.19,7.04458]
[1728295574707,1.69816542,147.23,147.19,7.04458]
[1728295575318,1.69816542,147.23,147.19,6.7936]
[1728295575524,6.7926,147.22,147.18,23.7794]
[1728295580729,23.776884,147.26,147.18,16.9852]
[1728295580899,6.7924,147.23,147.19,6.7939]
[1728295581100,1.69832055,147.22,147.18,16.9852]
[1728295581297,6.7925,147.22,147.18,23.7794]
[1728295582310,1.69835584,147.21,147.18,23.7794]
[1728295582819,8.49175584,147.21,147.17,6.7947]
[1728295583119,1.69835584,147.21,147.15,36.9887]
[1728295583320,1.69852588,147.22,147.15,36.9887]
[1728295583729,6.7935,147.2,147.16,6.795]
[1728295584103,6.7931,147.21,147.17,6.7948]
[1728295584730,8.49112588,147.22,147.18,8.15301829]
[1728295586222,8.49112588,147.22,147.18,6.7942]
[1728295586396,8.49112588,147.22,147.18,8.15288716]
[1728295586601,1.69852588,147.22,147.18,8.15288753]
[1728295586800,8.49132588,147.22,147.18,8.15288753]
[1728295587224,1.69852588,147.22,147.18,6.7942]
[1728295587428,1.69852588,147.22,147.18,8.15296521]
[1728295587602,8.49122588,147.22,147.18,8.15296521]
[1728295588501,8.49122588,147.22,147.19,6.7939]
[1728295588717,7.05341588,147.25,147.22,6.7925]
[1728295588924,1.69790445,147.26,147.23,6.7919]
[1728295589115,17.85436496,147.27,147.24,6.7916]
[1728295589829,16.1565,147.27,147.24,6.7916]
[1728295590029,16.1565,147.27,147.24,8.14976453]
[1728295590233,16.1565,147.27,147.24,6.7916]
[1728295590537,16.1565,147.27,147.24,1.35818968]
[1728295590704,16.1565,147.27,147.23,16.98]
[1728295591104,16.1565,147.27,147.24,6.7913]
[1728295591320,16.1565,147.27,147.24,8.1494506]
[1728295591520,16.1565,147.27,147.24,6.7913]
[1728295592419,16.1565,147.27,147.23,16.98]
[1728295592613,22.9467,147.27,147.23,23.7717]
[1728295593228,16.1565,147.27,147.23,23.7717]
[1728295593405,16.1565,147.27,147.24,8.14935776]
[1728295593829,8.48710251,147.29,147.25,6.7911]
[1728295594237,6.7894,147.29,147.25,6.7911]
[1728295595533,8.48647569,147.3,147.26,6.7906]
[1728295596329,1.69757569,147.3,147.27,6.7901]
[1728295597528,18.26798687,147.31,147.25,0.12549]
[1728295597728,6.7898,147.28,147.24,23.7695]
[1728295597934,1.69769556,147.27,147.24,23.7695]
[1728295598432,6.7898,147.28,147.24,23.7695]
[1728295600510,1.69768895,147.27,147.24,23.7695]
[1728295600710,6.7898,147.28,147.24,23.7695]
[1728295601117,1.69768814,147.27,147.24,23.7695]
[1728295602537,8.48798814,147.27,147.24,16.9781]
[1728295602718,6.7903,147.27,147.24,16.9781]
[1728295603525,1.69778056,147.26,147.23,6.7919]
[1728295606435,8.48848056,147.26,147.22,6.7923]
[1728295606633,6.7907,147.26,147.22,6.7923]
[1728295607152,24.15109661,147.25,147.21,23.7743]
[1728295607321,1.69802765,147.24,147.21,23.7743]
[1728295607934,8.48992765,147.24,147.2,6.7933]
[1728295608130,1.69802765,147.24,147.18,16.9851]
[1728295608347,1.69802765,147.24,147.19,7.04478]
[1728295608348,6.7922,147.23,147.19,7.04478]
[1728295608527,8.48972765,147.24,147.2,6.7933]
[1728295608928,15.6616,147.25,147.22,6.7924]
[1728295609135,17.35958538,147.25,147.22,6.7924]
[1728295609337,1.69798667,147.24,147.2,16.9835]
[1728295609529,1.69798667,147.24,147.21,6.7929]
[1728295610231,1.69798667,147.24,147.2,16.9835]
[1728295610437,1.69798667,147.24,147.2,23.7768]
[1728295610438,8.48988667,147.24,147.2,23.7768]
[1728295612849,22.4529,147.25,147.21,6.7929]
[1728295613230,1.6980539,147.24,147.21,6.7929]
[1728295613643,1.6980539,147.24,147.1,33.9898]
[1728295613852,6.7933,147.21,147.17,6.7948]
[1728295614032,6.7927,147.22,147.17,8.15358124]
[1728295614357,6.7927,147.22,147.18,6.7942]
[1728295614655,6.7927,147.22,147.19,1.35863758]
[1728295614840,6.7924,147.23,147.19,6.7938]
[1728295615355,1.6980539,147.24,147.19,6.7938]
[1728295615555,6.7925,147.22,147.19,6.7938]
[1728295619851,1.6980539,147.24,147.19,8.1523998]
[1728295620044,6.7925,147.22,147.19,8.1523998]
[1728295620852,6.7925,147.22,147.18,23.7799]
[1728295621956,21.7818,147.25,147.2,16.9835]
[1728295622136,15.6616,147.25,147.21,1.35834485]
[1728295622455,24.15066999,147.25,147.22,16.9812]
[1728295623436,22.4528,147.25,147.22,16.9812]
[1728295623639,22.4528,147.25,147.21,6.7927]
[1728295623839,6.7918,147.24,147.2,6.7934]
[1728295624041,1.69797273,147.24,147.19,16.9837]
[1728295624247,6.7929,147.22,147.18,6.7943]
[1728295626354,6.7929,147.22,147.19,1.35860549]
[1728295626661,6.7929,147.22,147.18,6.7943]
[1728295627659,1.69797273,147.24,147.18,6.7943]
[1728295627860,6.7937,147.2,147.16,23.7825]
[1728295629450,6.7927,147.22,147.18,6.7943]
[1728295629640,8.49108186,147.22,147.18,6.7943]
[1728295629849,6.7927,147.22,147.18,6.7943]
[1728295630151,8.49054452,147.23,147.19,6.7938]
[1728295630348,8.49054452,147.23,147.18,16.9859]
[1728295630349,6.7926,147.22,147.18,23.7801]
[1728295631341,8.49132004,147.21,147.18,23.7801]
[1728295631541,6.793,147.21,147.18,16.9859]
[1728295631759,6.7935,147.2,147.17,6.7947]
[1728295631968,6.7935,147.2,147.16,6.7948]
[1728295632144,6.7935,147.2,147.17,1.35879468]
[1728295632337,6.7935,147.2,147.16,6.7948]
[1728295632573,6.7935,147.2,147.17,6.7948]
[1728295632935,6.7935,147.2,147.16,6.795]
[1728295633748,8.49242511,147.19,147.15,23.7839]
[1728295633950,6.7939,147.19,147.15,23.7839]
[1728295634364,1.69857702,147.21,147.15,16.9883]
[1728295634569,6.7936,147.2,147.16,6.7952]
[1728295634867,1.69857058,147.19,147.16,6.7952]
[1728295635568,8.49217274,147.2,147.16,6.7952]
[1728295635746,8.49217274,147.2,147.16,8.15405192]
[1728295636157,17.46936542,147.22,147.17,16.9869]
[1728295636358,24.26196542,147.22,147.19,6.7937]
[1728295636554,24.26196542,147.22,147.18,6.7942]
[1728295637264,6.793,147.21,147.17,23.7815]
[1728295637468,8.49200131,147.2,147.17,16.9869]
[1728295638463,8.49200131,147.2,147.01,15.33985601]
[1728295638464,8.49242357,147.19,147.15,6.7956]
[1728295638655,6.7936,147.2,147.16,6.7952]
[1728295638980,8.49167561,147.21,147.17,6.7948]
[1728295640273,24.26186143,147.22,147.18,6.794]
[1728295640446,17.46926143,147.22,147.18,6.794]
[1728295640767,24.26196143,147.22,147.18,6.794]
[1728295640970,24.26196143,147.22,147.18,23.7799]
[1728295642563,17.46926143,147.22,147.11,0.1]
[1728295642865,20.0,147.21,147.11,0.1]
[1728295643048,6.7945,147.18,147.14,6.7962]
[1728295643248,1.69878629,147.17,147.14,6.7962]
[1728295643662,1.69878629,147.17,147.13,6.7965]
[1728295644068,8.49368629,147.17,147.13,6.7965]
[1728295644273,6.7949,147.17,147.13,6.7965]
[1728295645161,1.69880686,147.16,147.13,6.7965]
[1728295645367,22.0029,147.17,147.13,6.7965]
[1728295645687,15.208,147.17,147.14,6.7962]
[1728295646058,15.208,147.17,147.15,1.35898135]
[1728295646479,6.7937,147.2,147.16,6.795]
[1728295646787,8.49230509,147.2,147.16,6.795]
[1728295647076,15.208,147.21,147.18,6.7939]
[1728295648670,22.001,147.21,147.17,6.7947]
[1728295649473,8.49183121,147.2,147.16,23.783]
[1728295649758,6.7939,147.19,147.16,16.9879]